bitfinex/quotes_ETHUSD_20250403
["timestamp","ask_amount","ask_price","bid_price","bid_amount"]
[1743668319366,23.43989207,1821.7,1821.6,0.1715288]
[1743668319673,22.81251507,1821.7,1821.6,0.1715288]
[1743668319862,8.48967,1821.6,1821.5,0.27457345]
[1743668320062,14.15991081,1821.6,1821.2,5.49073]
[1743668320646,5.49,1821.5,1821.1,5.49114]
[1743668320831,0.18024734,1821.4,1821.1,5.49114]
[1743668321053,5.67055734,1821.4,1821.2,0.549114]
[1743668321270,0.8043,1821.3,1821.0,5.49145]
[1743668321471,0.18008949,1821.2,1821.0,5.49145]
[1743668321661,0.18008949,1821.2,1820.9,5.66334641]
[1743668321877,5.67107949,1821.2,1821.0,0.17160641]
[1743668322116,11.16219949,1821.2,1821.0,0.17160641]
[1743668322250,5.67107949,1821.2,1821.0,0.17160641]
[1743668322454,0.18008949,1821.2,1821.0,5.66299641]
[1743668322662,0.18008949,1821.2,1821.0,11.72066605]
[1743668322977,0.18008949,1821.2,1821.0,6.99847605]
[1743668323145,0.18008949,1821.2,1821.1,5.49118]
[1743668324900,0.18008949,1821.2,1821.1,5.66278641]
[1743668325447,10.23228215,1821.4,1821.1,11.15380641]
[1743668325705,0.1797562,1821.3,1821.2,6.60616064]
[1743668326000,0.1797562,1821.3,1821.2,1.11538064]
[1743668326148,5.32,1821.4,1821.2,1.11538064]
[1743668326455,0.17972185,1821.3,1821.1,5.83429549]
[1743668326657,5.32,1821.4,1821.1,5.66268908]
[1743668326857,0.17970467,1821.3,1821.1,5.66268908]
[1743668327081,5.32,1821.4,1821.1,5.49112]
[1743668327272,0.17970467,1821.3,1821.1,10.98216]
[1743668327474,5.32,1821.4,1821.1,12.21392596]
[1743668327803,0.17968749,1821.3,1821.2,5.49084]
[1743668328101,5.32,1821.4,1821.2,5.49084]
[1743668328384,0.17958443,1821.3,1821.1,5.49112]
[1743668328783,10.81032,1821.4,1821.1,5.49112]
[1743668328985,0.1762383,1821.2,1821.1,6.72292796]
[1743668329186,5.32,1821.4,1821.1,6.72292796]
[1743668329386,0.1762383,1821.2,1821.1,5.49112]
[1743668329588,10.81034,1821.4,1821.1,5.49112]
[1743668329808,0.17620394,1821.2,1821.0,5.49146]
[1743668329971,5.49062,1821.3,1821.1,0.17158286]
[1743668331909,5.49062,1821.3,1821.0,5.49146]
[1743668332070,5.49062,1821.3,1821.0,12.09829029]
[1743668332266,5.32,1821.4,1821.0,1.11548029]
[1743668332470,5.32,1821.4,1821.2,5.49071]
[1743668332700,5.32,1821.4,1821.1,10.9821]
[1743668333000,5.32,1821.4,1821.1,5.49105]
[1743668333181,10.81029,1821.4,1821.1,5.49105]
[1743668333395,5.32,1821.4,1821.2,5.49086]
[1743668333863,10.81028,1821.4,1821.1,6.31974]
[1743668334060,10.81028,1821.4,1821.1,5.49104]
[1743668335104,10.81028,1821.4,1821.1,10.98208]
[1743668335410,5.32,1821.4,1821.2,5.49087]
[1743668335566,11.74994,1821.5,1821.2,5.49087]
[1743668335768,5.321,1821.4,1821.2,5.49087]
[1743668337210,5.321,1821.4,1821.1,5.49104]
[1743668337709,5.321,1821.4,1821.1,10.98212]
[1743668337903,5.321,1821.4,1821.1,6.669152]
[1743668338110,5.321,1821.4,1821.2,5.49079]
[1743668338585,0.17363183,1821.3,1821.2,5.49079]
[1743668338906,5.321,1821.4,1821.2,5.49079]
[1743668339123,0.17363183,1821.3,1821.2,0.825]
[1743668339271,0.17363183,1821.3,1821.2,7.6153062]
[1743668339471,10.23328215,1821.7,1821.5,5.48985]
[1743668339795,0.1738343,1821.6,1821.5,5.48985]
[1743668340083,0.8236,1821.5,1821.2,6.2402462]
[1743668340283,5.66398643,1821.4,1821.1,5.49108]
[1743668340489,5.66398643,1821.4,1821.1,5.49106]
[1743668340722,5.49058,1821.3,1821.0,10.9828]
[1743668341009,5.321,1821.3,1821.1,11.15367962]
[1743668341207,0.17420651,1821.2,1821.1,11.15367962]
[1743668341408,0.17420651,1821.2,1821.1,11.98327962]
[1743668341595,0.17420651,1821.2,1821.1,11.15367962]
[1743668341800,0.17420651,1821.2,1821.1,11.3252614]
[1743668342108,0.17420651,1821.2,1821.1,12.57036088]
[1743668342818,0.17420651,1821.2,1821.1,0.3431614]
[1743668342986,0.17420651,1821.2,1821.1,5.8343414]
[1743668343818,0.17420651,1821.2,1821.1,5.66275962]
[1743668344216,0.17420651,1821.2,1821.1,5.93729328]
[1743668345605,0.17420651,1821.2,1821.1,6.10887506]
[1743668345817,0.17420651,1821.2,1821.1,7.9306059]
[1743668347715,0.17420651,1821.2,1821.1,9.2758059]
[1743668348082,5.32,1821.5,1821.4,5.49028]
[1743668348272,0.17420991,1821.5,1821.4,5.49028]
[1743668348488,4.91228215,1821.7,1821.6,5.48967]
[1743668348691,10.40693005,1821.7,1821.6,5.48967]
[1743668349824,10.40693005,1821.7,1821.6,5.93578328]
[1743668350335,10.40693005,1821.7,1821.6,6.10736506]
[1743668354632,10.40693005,1821.7,1821.6,0.61769506]
[1743668354806,17.74439306,1821.7,1821.6,0.61769506]
[1743668355131,12.25502306,1821.7,1821.6,0.61769506]
[1743668355590,17.74439306,1821.7,1821.6,0.61769506]
[1743668355794,10.40693005,1821.7,1821.6,5.66124962]
[1743668357929,10.40693005,1821.7,1821.6,5.8328314]
[1743668358231,5.4946479,1821.7,1821.6,5.8328314]
[1743668358625,5.4946479,1821.7,1821.6,6.10736506]
[1743668358793,0.1746479,1821.7,1821.6,8.59608557]
[1743668358998,0.1746479,1821.7,1821.6,11.72162445]
[1743668359197,0.1,1821.9,1821.8,6.03907]
[1743668360825,0.1,1821.9,1821.8,6.21065178]
[1743668361223,0.1,1821.9,1821.8,5.66065178]
[1743668361735,0.1,1821.9,1821.8,6.10676506]
[1743668361939,0.1,1821.9,1821.8,7.26636557]
[1743668362303,0.1,1821.9,1821.8,7.09478379]
[1743668362811,0.1,1821.9,1821.8,6.82025013]
[1743668363037,0.1,1821.9,1821.8,5.66064962]
[1743668363963,0.8828,1821.9,1821.8,0.17157962]
[1743668364151,6.37157,1821.9,1821.8,0.17157962]
[1743668364655,0.8828,1821.9,1821.8,0.17157962]
[1743668364964,6.37157,1821.9,1821.8,0.17157962]
[1743668365133,7.93533783,1821.9,1821.8,0.17157962]
[1743668365333,6.30847,1821.8,1821.7,0.17157962]
[1743668365560,14.75200888,1821.8,1821.7,0.17157962]
[1743668365863,19.66429103,1821.8,1821.7,0.17157962]
[1743668366063,22.64231392,1821.8,1821.7,0.17157962]
[1743668366554,6.25827,1821.6,1821.5,0.17158178]
[1743668366762,9.38380888,1821.6,1821.5,0.17158178]
[1743668367129,5.49019,1821.5,1821.3,0.17158178]
[1743668367329,10.80828,1821.4,1821.3,0.17158178]
[1743668367664,11.60448,1821.4,1821.3,0.17158178]
[1743668368525,11.78038726,1821.4,1821.3,0.17158178]
[1743668368731,17.27083726,1821.4,1821.2,0.17158644]
[1743668368959,17.27083726,1821.4,1821.0,5.66299178]
[1743668370361,17.27083726,1821.4,1821.1,0.17159735]
[1743668370543,5.49058,1821.3,1821.1,0.17159735]
[1743668370956,0.17542245,1821.2,1821.1,0.17159735]
[1743668374174,11.60448,1821.4,1821.1,0.17159735]
[1743668374358,0.17514973,1821.2,1821.1,0.17159735]
[1743668374535,11.60448,1821.4,1821.2,0.17159735]
[1743668374737,0.1752287,1821.3,1821.2,0.17159735]
[1743668374937,11.60448,1821.4,1821.2,0.17159735]
[1743668375237,0.1752287,1821.3,1821.2,0.17159735]
[1743668375558,0.1752287,1821.3,1821.1,5.49118]
[1743668375762,11.60448,1821.4,1821.1,5.49118]
[1743668375962,0.17514973,1821.2,1821.1,5.49118]
[1743668376162,11.60448,1821.4,1821.1,5.49118]
[1743668376363,0.17514973,1821.2,1821.1,5.49118]
[1743668376562,11.60448,1821.4,1821.1,5.49118]
[1743668376764,0.17514973,1821.2,1821.1,5.49118]
[1743668376936,11.8907384,1821.4,1821.1,5.49118]
[1743668377137,0.1752287,1821.3,1821.1,5.49118]
[1743668377374,11.8907384,1821.4,1821.1,5.49118]
[1743668377563,0.17514973,1821.2,1821.1,5.49108]
[1743668377872,11.8907384,1821.4,1821.1,5.49108]
[1743668378074,0.2862584,1821.4,1821.3,5.49058]
[1743668378372,0.2862584,1821.4,1821.3,6.04058]
[1743668378569,4.91228215,1821.5,1821.4,5.49028]
[1743668378774,6.1213,1821.8,1821.5,5.48974]
[1743668378954,6.1213,1821.8,1821.5,10.97948]
[1743668379151,11.61048,1821.8,1821.5,5.48974]
[1743668379351,13.61393084,1821.8,1821.5,5.48974]
[1743668380077,5.319,1821.8,1821.7,5.48937]
[1743668380381,5.29848951,1821.9,1821.8,5.48907]
[1743668380578,10.61748951,1821.9,1821.8,5.48907]
[1743668381641,10.61748951,1821.9,1821.7,5.48926]
[1743668381842,10.33128215,1821.9,1821.7,5.48926]
[1743668382064,10.33128215,1821.9,1821.8,0.548926]
[1743668382344,10.33128215,1821.9,1821.8,6.037996]
[1743668382879,10.33128215,1821.9,1821.8,6.2095462]
[1743668383579,10.50525009,1821.9,1821.8,6.2095462]
[1743668383878,5.59296794,1821.9,1821.8,6.2095462]
[1743668384544,5.59296794,1821.9,1821.8,7.0316462]
[1743668388372,5.59296794,1821.9,1821.8,7.0316462]
[1743668390218,5.59296794,1821.9,1821.8,5.6606202]
[1743668391518,5.59296794,1821.9,1821.8,5.48907]
[1743668392209,5.59296794,1821.9,1821.7,5.6607902]
[1743668392415,5.59296794,1821.9,1821.7,0.1715502]
[1743668392416,6.41956794,1821.9,1821.7,0.1715502]
[1743668393307,6.41956794,1821.9,1821.7,5.6609102]
[1743668394210,11.90845794,1821.9,1821.7,0.1715502]
[1743668394612,5.48907,1821.8,1821.7,0.1715502]
[1743668394768,6.4790015,1821.8,1821.7,0.1715502]
[1743668395921,11.9682715,1821.8,1821.4,10.98043]
[1743668396070,5.48939,1821.7,1821.4,5.49016]
[1743668396272,10.97901,1821.7,1821.3,11.1526002]
[1743668396517,0.17736008,1821.6,1821.3,11.1526002]
[1743668396716,6.0677,1821.5,1821.3,6.85805022]
[1743668396915,6.0677,1821.5,1821.3,5.6620202]
[1743668397209,0.1772022,1821.4,1821.3,5.6620202]
[1743668398020,0.1772022,1821.4,1821.3,0.1715502]
[1743668398383,0.1772022,1821.4,1821.3,5.6621302]
[1743668401012,0.1772022,1821.4,1821.3,0.1715502]
[1743668401222,7.51741442,1821.4,1821.3,0.1715502]
[1743668401984,0.1772022,1821.4,1821.3,0.1715502]
[1743668402183,0.1772022,1821.4,1821.3,5.6621302]
[1743668402615,0.1772022,1821.4,1821.3,5.49058]
[1743668403889,0.1772022,1821.4,1821.3,5.6621302]
[1743668404110,0.1772022,1821.4,1821.3,5.83370501]
[1743668404426,0.1772022,1821.4,1821.3,7.10430388]
[1743668404594,0.1772022,1821.4,1821.3,7.04940151]
[1743668405725,0.1772022,1821.4,1821.3,0.34312501]
[1743668406728,0.1772022,1821.4,1821.3,0.1715502]
[1743668408294,0.1772022,1821.4,1821.2,0.1715502]
[1743668408634,5.6675122,1821.4,1821.2,0.1715502]
[1743668408834,11.1580022,1821.4,1821.2,0.1715502]
[1743668409040,7.39470242,1821.4,1821.2,0.1715502]
[1743668409252,7.39470242,1821.4,1821.1,5.66265481]
[1743668410524,7.39470242,1821.4,1821.1,5.49108]
[1743668411339,0.1772022,1821.4,1821.2,5.49084]
[1743668411505,0.1772022,1821.4,1821.3,6.26918]
[1743668411938,10.22828215,1821.6,1821.5,5.48998]
[1743668412456,4.91228215,1821.6,1821.5,5.48998]
[1743668413096,4.91228215,1821.6,1821.5,5.66157411]
[1743668413335,4.91228215,1821.6,1821.5,6.77673852]
[1743668413530,5.07144813,1821.6,1821.5,6.77673852]
[1743668413736,5.07144813,1821.6,1821.5,7.53833852]
[1743668414531,5.07144813,1821.6,1821.5,8.08833852]
[1743668414532,0.15916598,1821.6,1821.5,8.08833852]
[1743668414845,5.416,1821.9,1821.8,5.48907]
[1743668415036,0.1,1821.9,1821.8,5.48907]
[1743668415741,0.1,1821.9,1821.8,5.66066411]
[1743668417623,0.1,1821.9,1821.8,0.17159411]
[1743668417946,0.9029,1821.9,1821.8,0.17159411]
[1743668418819,0.9029,1821.9,1821.6,11.42526993]
[1743668418820,0.1,1821.9,1821.7,5.66084411]
[1743668419019,0.1,1821.9,1821.8,5.48907]
[1743668419360,0.1,1821.9,1821.8,6.31647]
[1743668419723,0.8687,1821.9,1821.7,0.17159411]
[1743668419953,13.50518521,1821.9,1821.7,0.17159411]
[1743668420251,13.50518521,1821.9,1821.8,0.17159411]
[1743668420749,16.63072409,1821.9,1821.8,0.17159411]
[1743668420951,15.86202409,1821.9,1821.8,0.17159411]
[1743668421109,16.67622409,1821.9,1821.8,0.17159411]
[1743668421317,6.30387,1821.6,1821.5,0.34316892]
[1743668421631,11.61887,1821.6,1821.5,0.34316892]
[1743668422555,11.61895,1821.6,1821.4,0.17159411]
[1743668422737,18.24206715,1821.6,1821.4,0.17159411]
[1743668422938,5.48998,1821.5,1821.4,0.17159411]
[1743668423454,18.24206715,1821.6,1821.4,0.17159411]
[1743668423609,16.53123215,1821.6,1821.4,0.17159411]
[1743668423814,11.04148215,1821.6,1821.3,11.15247481]
[1743668424010,11.04148215,1821.6,1821.3,5.66198481]
[1743668424214,16.53117215,1821.6,1821.3,5.49041]
[1743668424519,22.02102215,1821.6,1821.2,5.66235481]
[1743668424950,5.49003,1821.5,1821.2,5.66235481]
[1743668425221,10.98018,1821.5,1821.2,0.17157481]
[1743668425445,5.49028,1821.4,1821.3,0.17157651]
[1743668425809,6.28968,1821.4,1821.3,0.17157651]
[1743668426448,6.28968,1821.4,1821.2,0.17157481]
[1743668427067,5.49058,1821.3,1821.2,0.17157481]
[1743668427417,6.28968,1821.4,1821.2,0.17157481]
[1743668427617,6.28968,1821.4,1821.1,5.66275481]
[1743668427819,6.28968,1821.4,1821.1,5.83435781]
[1743668428453,0.15947125,1821.3,1821.1,6.96677259]
[1743668428623,5.315,1821.2,1821.1,6.96677259]
[1743668428953,5.315,1821.2,1821.1,6.79516959]
[1743668429155,5.47452974,1821.2,1821.1,6.62359478]
[1743668430420,5.47452974,1821.2,1821.1,6.79516959]
[1743668430621,5.47452974,1821.2,1821.1,0.17157481]
[1743668430931,5.47452974,1821.2,1821.1,0.34316453]
[1743668431342,15.87769189,1821.2,1821.1,0.34316453]
[1743668431776,15.87769189,1821.2,1821.1,0.17158972]
[1743668432165,15.87769189,1821.2,1821.0,0.17158972]
[1743668432393,7.83994919,1821.1,1821.0,0.17158972]
[1743668432878,7.99855315,1821.1,1821.0,0.17158972]
[1743668433886,5.49164,1821.0,1820.8,0.17158972]
[1743668434335,0.15782697,1820.9,1820.8,0.17158972]
[1743668434534,11.31778912,1820.9,1820.8,0.17158972]
[1743668434764,12.99873203,1820.9,1820.8,0.17158972]
[1743668435371,5.49211,1820.8,1820.6,0.17158972]
[1743668435534,5.316,1820.7,1820.6,0.17158972]
[1743668435973,5.46983555,1820.7,1820.6,0.17158972]
[1743668436979,5.46983555,1820.7,1820.5,5.49286]
[1743668437177,5.46983555,1820.7,1820.5,11.612806]
[1743668437331,5.46983555,1820.7,1820.5,6.119936]
[1743668437770,5.46983555,1820.7,1820.5,11.612776]
[1743668438432,5.46983555,1820.7,1820.6,5.49269]
[1743668438650,5.46983555,1820.7,1820.5,6.119916]
[1743668438852,5.46983555,1820.7,1820.5,11.612816]
[1743668439399,5.46983555,1820.7,1820.5,6.119916]
[1743668439598,5.46983555,1820.7,1820.5,5.49284]
[1743668439808,5.46983555,1820.7,1820.6,0.17163916]
[1743668440856,5.46983555,1820.7,1820.5,5.66447916]
[1743668441970,5.46983555,1820.7,1820.5,11.15733916]
[1743668442193,5.46983555,1820.7,1820.6,5.49269]
[1743668443194,5.46983555,1820.7,1820.5,11.15733916]
[1743668443690,5.46983555,1820.7,1820.5,5.66447916]
[1743668444294,5.46983555,1820.7,1820.5,5.49284]
[1743668444461,5.46983555,1820.7,1820.4,10.98646]
[1743668445470,5.46983555,1820.7,1820.5,5.49294]
[1743668445794,5.46983555,1820.7,1820.5,6.27864]
[1743668446361,5.46983555,1820.7,1820.4,5.49315]
[1743668446775,5.46983555,1820.7,1820.4,10.98633]
[1743668447292,5.46983555,1820.7,1820.4,11.1579628]
[1743668448891,5.49299,1820.5,1820.4,0.1716528]
[1743668449098,0.7878,1820.6,1820.4,0.1716528]
[1743668449264,0.15151319,1820.5,1820.4,0.1716528]
[1743668449925,0.15151319,1820.5,1820.3,5.49339]
[1743668450097,0.15151319,1820.5,1820.4,6.042629]
[1743668450262,10.22828215,1820.7,1820.4,11.535919]
[1743668450457,0.15095143,1820.5,1820.4,11.535919]
[1743668450663,5.316,1820.6,1820.5,6.28159]
[1743668450896,5.316,1820.6,1820.5,11.77438]
[1743668451097,5.316,1820.6,1820.5,6.28159]
[1743668451302,5.316,1820.6,1820.5,6.4532428]
[1743668453694,5.316,1820.6,1820.5,0.1716528]
[1743668454016,6.33882822,1820.6,1820.5,0.1716528]
[1743668454880,6.33882822,1820.6,1820.3,0.1716528]
[1743668455620,16.74393037,1820.6,1820.3,0.1716528]
[1743668455823,5.49304,1820.5,1820.3,0.1716528]
[1743668456116,0.8141,1820.4,1820.2,0.1716528]
[1743668456284,6.35709615,1820.4,1820.2,0.1716528]
[1743668456877,11.85046615,1820.4,1820.2,0.1716528]
[1743668457437,11.85046615,1820.4,1820.1,0.17167057]
[1743668457589,5.49369,1820.3,1820.1,0.17167057]
[1743668457805,5.316,1820.2,1820.1,0.17167057]
[1743668458117,5.316,1820.2,1820.0,26.0]
[1743668458496,0.14886568,1820.1,1820.0,26.0]
[1743668460177,0.14886568,1820.1,1820.0,26.17170346]
[1743668467683,0.91556568,1820.1,1820.0,26.17170346]
[1743668468381,1.53872225,1820.1,1820.0,26.17170346]
[1743668468581,7.03292225,1820.1,1820.0,26.17170346]
[1743668469307,7.03292225,1820.1,1820.0,26.0]
[1743668472399,11.9452044,1820.1,1820.0,26.0]
[1743668474427,11.9452044,1820.1,1820.0,26.0]
[1743668475933,14.9828044,1820.1,1820.0,26.0]
[1743668476633,9.4886044,1820.1,1820.0,26.0]
[1743668476795,14.9828044,1820.1,1820.0,26.0]
[1743668479016,5.06114783,1820.1,1820.0,31.4945]
[1743668479210,5.06114783,1820.1,1820.0,32.2596]
[1743668479407,5.06114783,1820.1,1820.0,26.7651]
[1743668480400,5.06114783,1820.1,1820.0,32.2596]
[1743668481501,0.14886568,1820.1,1820.0,36.035027]
[1743668481735,5.316,1820.3,1820.2,6.25]
[1743668481911,5.316,1820.3,1820.2,0.7561]
[1743668482118,5.316,1820.3,1820.0,32.2505]
[1743668482528,5.316,1820.3,1820.0,32.25046]
[1743668482734,4.91228215,1820.4,1820.3,5.49359]
[1743668482930,10.22828215,1820.4,1820.3,5.49359]
[1743668483146,10.22828215,1820.4,1820.1,0.17168473]
[1743668483739,10.22828215,1820.4,1820.1,5.66569473]
[1743668484236,10.22828215,1820.4,1820.2,11.15928922]
[1743668484437,4.91228215,1820.4,1820.2,6.82599689]
[1743668484644,10.22828215,1820.4,1820.3,0.7789]
[1743668485033,10.22828215,1820.4,1820.3,6.27249]
[1743668485819,10.22828215,1820.4,1820.3,6.44417922]
[1743668486835,10.22828215,1820.4,1820.3,0.95058922]
[1743668487644,10.22728215,1820.4,1820.3,6.44417922]
[1743668487848,10.22728215,1820.4,1820.3,8.18734814]
[1743668488511,10.36063145,1820.4,1820.3,8.3590099]
[1743668489163,0.1333493,1820.4,1820.3,9.22084442]
[1743668489368,0.1333493,1820.4,1820.3,9.16591266]
[1743668489369,9.3e-06,1820.4,1820.3,9.16591266]
[1743668489657,4.91228215,1820.9,1820.8,6.25319]
[1743668489966,5.315,1821.1,1820.8,6.25319]
[1743668489967,5.315,1821.1,1821.0,6.25258]
[1743668491618,5.315,1821.1,1821.0,6.42426922]
[1743668493044,5.315,1821.1,1821.0,6.59584638]
[1743668493763,10.22628215,1821.4,1821.0,6.59584638]
[1743668493970,0.7805,1821.3,1821.0,5.66316922]
[1743668494137,0.7805,1821.3,1821.0,0.17168922]
[1743668494138,6.27113,1821.3,1821.0,0.17168922]
[1743668494345,2.97927222,1821.3,1821.0,0.17168922]
[1743668494545,8.46985222,1821.3,1821.0,0.17168922]
[1743668494748,11.5953911,1821.3,1821.0,0.17168922]
[1743668495137,11.5953911,1821.3,1820.8,6.32124]
[1743668495138,11.5956111,1821.3,1820.8,6.32124]
[1743668495278,6.1048111,1821.3,1820.8,0.8292]
[1743668495625,3.90603888,1821.3,1820.9,10.98327]
[1743668496291,0.7805,1821.3,1821.0,5.49141]
[1743668496909,0.10868971,1821.2,1820.8,11.81316]
[1743668497110,5.59972971,1821.2,1820.8,5.49192]
[1743668497310,5.59972971,1821.2,1820.6,6.30915]
[1743668497311,8.82912103,1821.1,1820.6,6.30915]
[1743668497477,5.42167212,1821.0,1820.6,5.49265]
[1743668497676,10.91327212,1821.0,1820.6,5.49265]
[1743668497983,5.42167212,1821.0,1820.7,5.49235]
[1743668498370,4.91228215,1820.9,1820.5,5.76751581]
[1743668498570,0.7711,1820.8,1820.5,5.76751581]
[1743668498785,10.40476215,1820.7,1820.5,0.27458581]
[1743668498986,10.40476215,1820.7,1820.3,10.98702]
[1743668498987,5.313,1820.6,1820.3,10.98702]
[1743668499235,5.42036759,1820.6,1820.4,5.49326]
[1743668499586,5.42036759,1820.6,1820.4,10.98643]
[1743668499801,5.42036759,1820.6,1820.5,5.49299]
[1743668500821,5.42036759,1820.6,1820.2,1.09238581]
[1743668500822,5.42036759,1820.6,1820.3,5.66520949]
[1743668501120,5.42036759,1820.6,1820.3,11.15863949]
[1743668501324,5.42036759,1820.6,1820.4,5.49303]
[1743668501529,5.42036759,1820.6,1820.5,5.49299]
[1743668502834,5.42036759,1820.6,1820.3,5.49348]
[1743668503034,5.42036759,1820.6,1820.3,10.98692]
[1743668503441,5.42036759,1820.6,1820.3,5.49344]
[1743668503737,5.42036759,1820.6,1820.2,0.8178]
[1743668503738,10.91320759,1820.6,1820.2,0.8178]
[1743668503936,0.8173,1820.5,1820.1,11.31766095]
[1743668504142,0.10363128,1820.4,1820.1,11.26272581]
[1743668504547,0.10363128,1820.4,1820.1,5.76864581]
[1743668504839,0.10363128,1820.4,1820.2,5.49369]
[1743668505000,0.10363128,1820.4,1820.3,5.49359]
[1743668505500,11.04278215,1820.6,1820.3,5.49359]
[1743668505837,0.10395106,1820.5,1820.3,5.49359]
[1743668506217,0.10395106,1820.5,1820.2,5.49369]
[1743668506427,0.10395106,1820.5,1820.2,10.98744]
[1743668506798,11.04278215,1820.6,1820.2,10.98744]
[1743668506995,11.04278215,1820.6,1820.2,5.49369]
[1743668507200,24.54368025,1820.6,1820.1,5.66583244]
[1743668507426,19.05082025,1820.6,1820.1,5.66583244]
[1743668507622,8.61861888,1820.5,1820.1,0.17167244]
[1743668507842,0.7566,1820.4,1820.1,0.17167244]
[1743668508001,5.49363,1820.3,1820.1,0.17167244]
[1743668508329,5.312,1820.2,1820.1,0.17167244]
[1743668508523,10.8059,1820.2,1820.1,0.17167244]
[1743668508839,11.5879,1820.2,1820.1,0.17167244]
[1743668509224,11.5879,1820.2,1820.0,26.0]
[1743668509906,10.40648215,1820.1,1820.0,26.0]
[1743668510429,16.17192462,1820.1,1820.0,26.0]
[1743668511642,19.17192462,1820.1,1820.0,26.0]
[1743668513630,19.58377027,1820.1,1820.0,26.0]
[1743668513843,21.35938574,1820.1,1820.0,26.0]
[1743668514049,24.48492462,1820.1,1820.0,26.0]
[1743668515158,4.91228215,1820.1,1820.0,26.0]
[1743668515361,10.22528215,1820.1,1820.0,26.0]
[1743668515928,10.22528215,1820.1,1820.0,32.2534]
[1743668516264,4.91228215,1820.1,1820.0,32.2534]
[1743668516432,8.49277,1820.6,1820.2,5.49385]
[1743668516433,5.314,1820.4,1820.2,5.49385]
[1743668516633,5.314,1820.4,1820.3,0.549385]
[1743668517032,5.314,1820.4,1820.2,5.49369]
[1743668517360,5.314,1820.4,1820.3,6.27849]
[1743668517941,8.80592103,1820.9,1820.5,5.49299]
[1743668518138,5.314,1820.8,1820.5,5.49285]
[1743668519977,4.91228215,1820.9,1820.5,11.04062463]
[1743668520274,5.313,1820.7,1820.6,1.10406246]
[1743668520797,5.313,1820.7,1820.3,6.27821]
[1743668521082,10.80554,1820.7,1820.3,0.7849]
[1743668521489,5.49303,1820.5,1820.2,0.27463371]
[1743668521692,10.40531215,1820.5,1820.2,0.27463371]
[1743668522142,5.313,1820.4,1820.2,11.26237371]
[1743668522348,5.313,1820.4,1820.3,6.61982737]
[1743668522649,5.313,1820.4,1820.3,7.40032737]
[1743668524388,5.313,1820.4,1820.3,1.90673737]
[1743668524960,5.313,1820.4,1820.1,6.56287371]
[1743668525496,5.313,1820.4,1820.1,6.73453763]
[1743668525986,5.313,1820.4,1820.1,6.63158528]
[1743668526191,5.313,1820.4,1820.1,12.12563528]
[1743668526855,5.313,1820.4,1820.1,6.45983136]
[1743668527171,5.313,1820.4,1820.2,0.17168136]
[1743668528401,10.80636,1820.4,1820.2,0.17168136]
[1743668528878,5.313,1820.4,1820.2,0.17168136]
[1743668529698,10.80633,1820.4,1820.2,0.17168136]
[1743668529900,10.80633,1820.4,1820.1,0.17168136]
[1743668530195,10.8063,1820.4,1820.1,0.17168136]
[1743668530369,5.49366,1820.3,1820.1,0.17168136]
[1743668530563,6.3072,1820.2,1820.1,0.17168136]
[1743668531192,6.3072,1820.2,1820.0,26.0]
[1743668533394,11.80131,1820.2,1820.0,26.0]
[1743668533594,5.4942,1820.1,1820.0,26.0]
[1743668533758,10.40648215,1820.1,1820.0,26.0]
[1743668537098,4.91228215,1820.1,1820.0,26.0]
[1743668537987,5.19873892,1820.1,1820.0,26.0]
[1743668539796,10.51073892,1820.1,1820.0,34.8974]
[1743668539980,5.19873892,1820.1,1820.0,34.8974]
[1743668541699,5.19873892,1820.1,1820.0,35.34381028]
[1743668541999,5.19873892,1820.1,1820.0,35.75164207]
[1743668543295,5.19873892,1820.1,1820.0,30.25714207]
[1743668543487,5.19873892,1820.1,1820.0,26.85424207]
[1743668543865,5.19873892,1820.1,1820.0,27.02593667]
[1743668544062,5.19873892,1820.1,1820.0,26.75122265]
[1743668545305,5.19873892,1820.1,1820.0,26.57952805]
[1743668546106,5.19873892,1820.1,1820.0,26.17169626]
[1743668548091,10.69293892,1820.1,1820.0,26.17169626]
[1743668548291,15.41894469,1820.1,1820.0,26.17169626]
[1743668548613,16.21844469,1820.1,1820.0,26.17169626]
[1743668548823,15.93198792,1820.1,1820.0,26.17169626]
[1743668548968,16.21845714,1820.1,1820.0,26.17169626]
[1743668549609,16.21845714,1820.1,1820.0,26.0]
[1743668555786,19.21845714,1820.1,1820.0,26.0]
[1743668557822,19.6377868,1820.1,1820.0,26.0]
[1743668558729,23.80486472,1820.1,1820.0,26.0]
[1743668558938,24.09139598,1820.1,1820.0,26.0]
[1743668559296,20.9658571,1820.1,1820.0,26.0]
[1743668561897,5.49651,1819.4,1819.1,0.8679]
[1743668562096,5.312,1819.3,1819.1,0.8679]
[1743668562440,10.80873,1819.3,1819.1,0.1]
[1743668562592,5.312,1819.3,1819.1,0.1]
[1743668564996,12.29553888,1819.2,1819.1,0.1]
[1743668565241,18.57915888,1819.2,1819.1,0.1]
[1743668565442,6.17,1819.2,1819.1,0.1]
[1743668569129,11.482,1819.3,1819.1,0.1]
[1743668570190,6.17,1819.3,1819.1,0.1]
[1743668570333,5.313,1819.2,1819.1,6.232857]
[1743668570845,5.313,1819.2,1819.1,0.735647]
[1743668571002,5.313,1819.2,1819.1,0.1]
[1743668575826,6.17,1819.3,1819.1,0.1]
[1743668576052,5.313,1819.2,1819.1,0.1]
[1743668578527,5.313,1819.2,1819.1,5.59722]
[1743668579615,6.17,1819.3,1819.2,5.49692]
[1743668579815,0.28646373,1819.4,1819.3,6.24681]
[1743668580016,5.312,1819.5,1819.3,6.24681]
[1743668580710,5.312,1819.5,1819.3,0.7502]
[1743668580910,5.312,1819.5,1819.2,1.109414]
[1743668581115,5.312,1819.5,1819.2,0.7502]
[1743668581348,21.23309327,1819.5,1819.3,0.1717938]
[1743668581548,5.49631,1819.4,1819.3,0.1717938]
[1743668582046,9.31131,1819.4,1819.3,0.1717938]
[1743668582225,15.48131,1819.4,1819.3,0.1717938]
[1743668582627,20.9779,1819.4,1819.2,0.40857933]
[1743668582846,1.99210566,1819.3,1819.2,0.40857933]
[1743668583026,1.99210566,1819.3,1819.1,0.1]
[1743668584857,7.48872566,1819.3,1819.1,0.1]
[1743668585021,5.49692,1819.2,1819.1,0.1]
[1743668585418,0.28661695,1819.2,1819.1,0.1]